Workbook

Sheet Freeway_Import
C2: Project | D2: =Schematic!$L$3 -> (Highway XX Project)
C3: Scenario | D3: =Schematic!$L$4 -> (Peak Period) | K3: LINK_ID
L4: ="$" -> $
K5: imbal | L5: 0 | M5: 0
K6: 0 | L6: 0 | M6: 0
K7: target | L7: $ | M7: $
C9: LINK_ID | D9: Corridor | E9: Corridor & Direction | F9: Type | G9: Location | H9: Balanced Volume

Sheet Schematic
K3: Project | L3: (Highway XX Project)
K4: Scenario | L4: (Peak Period)
J10: Do not put intersection data on the left side or above the black border
F11: Total network imbalance | G11: =ABS(AN22)+ABS(U37)+ABS(BC41)+ABS(AJ56)+ABS(AN57)+ABS(BW57)+ABS(U72)+ABS(BD72)+ABS(BC76)+ABS(CL76)+ABS(AJ91) -> 275
C14: Balancing Convergence Criteria
F15: Maximum Iterations | G15: 500
F16: Max. Tot. Network Imbalance | G16: 0.01
AI22: =IF(AJ19<>"",AVERAGE(AJ22,AJ19),AJ22) -> 211 | AJ22: =SUM(AH34:AK34) -> 211 | AK22: =SUM(AH37:AK37) -> 211 | AM22: =IF(AM21<>"",AM21-AM24,0) -> 0 | AN22: =IF(AN21<>"",AN21-AN24,0) -> 0 | AO22: imbal
AI23: target | AJ23: $ | AK23: $ | AM23: # | AN23: # | AO23: target
AM24: =SUM(AK37,AJ41,AO41,AN35) -> 234 | AN24: =SUM(AK34,AG41,AO44,AQ35) -> 234 | AO24: =IF(AN21<>"",AVERAGE(AN24,AN21),AN24) -> 234
X25: =CHOOSE(1,AL39&":","IX_NAME",Y25) -> 1: | Y25: =AC40&" & "&AK28 -> Street 2 & Street 1 | AU25: Local OD Raw
Y26: Raw Count Date: | AU26: ="local_od_raw_"&AL39 -> local_od_raw_1 | AV26: 1 | AW26: 2 | AX26: 3 | AY26: 4 | AZ26: est | BA26: tgt | BB26: err
AU27: 1 | AV27: =AM41 -> 0 | AW27: =AP41 -> 94 | AX27: =AO41 -> 85 | AY27: =AN41 -> 85 | AZ27: =SUM(AV27:AY27) -> 264 | BA27: =AO56 -> 248.5 | BB27: =IFERROR(ABS(AZ27-BA27)/BA27,0) -> 0.06237424547
AK28: Street 1 | AU28: 2 | AV28: =AN37 -> 64 | AW28: =AN38 -> 0 | AX28: =AN35 -> 70 | AY28: =AN36 -> 56 | AZ28: =SUM(AV28:AY28) -> 190 | BA28: =BC36 -> 186 | BB28: =IFERROR(ABS(AZ28-BA28)/BA28,0) -> 0.02150537634
AU29: 3 | AV29: =AI37 -> 98 | AW29: =AJ37 -> 55 | AX29: =AK37 -> 0 | AY29: =AH37 -> 58 | AZ29: =SUM(AV29:AY29) -> 211 | BA29: =AI22 -> 211 | BB29: 0
AU30: 4 | AV30: =AJ43 -> 59 | AW30: =AJ42 -> 51 | AX30: =AJ41 -> 79 | AY30: =AJ40 -> 0 | AZ30: =SUM(AV30:AY30) -> 189 | BA30: =U42 -> 189 | BB30: 0
AU31: est | AV31: =SUM(AV27:AV30) -> 221 | AW31: =SUM(AW27:AW30) -> 200 | AX31: =SUM(AX27:AX30) -> 234 | AY31: =SUM(AY27:AY30) -> 199
AG32: RNSE | AH32: =RNSE(AH34,AH37) -> 0 | AI32: =RNSE(AI34,AI37) -> 0 | AJ32: 0 | AK32: - | AU32: tgt | AV32: =AI54 -> 209.5 | AW32: =BA42 -> 167.5 | AX32: =AO24 -> 234 | AY32: =W36 -> 199
AG33: % | AH33: =AH34/AJ22 -> 0.2748815166 | AI33: =AI34/AJ22 -> 0.4644549763 | AJ33: =AJ34/AJ22 -> 0.2606635071 | AK33: =AK34/AJ22 -> 0 | AU33: err | AV33: =IFERROR(ABS(AV31-AV32)/AV32,0) -> 0.05489260143 | AW33: =IFERROR(ABS(AW31-AW32)/AW32,0) -> 0.1940298507 | AX33: 0 | AY33: 0 | BB33: =SUM(AV33:AY33,BB27:BB30) -> 0.332802074
AG34: bal | AH34: =AY48 -> 58 | AI34: =AV48 -> 98 | AJ34: =AW48 -> 55 | AK34: =AX48 -> 0 | AN34: raw | AO34: % | AQ34: bal | AR34: % | AS34: RNSE
AH35: 8 | AI35: $ | AJ35: 9 | AK35: M | AM35: =CHOOSE(1,"<","TURN",8,AL39,AN35,AQ35) -> < | AN35: 70 | AO35: =AN35/BC38 -> 0.3684210526 | AP35: < | AQ35: =AX47 -> 70 | AR35: =AQ35/BC37 -> 0.3684210526 | AS35: =RNSE(AQ35,AN35) -> 0
U36: imbal | V36: target | W36: =IF(T37<>"",AVERAGE(W37,T37),W37) -> 199 | AG36: % | AH36: =AH37/AK22 -> 0.2748815166 | AI36: =AI37/AK22 -> 0.4644549763 | AJ36: =AJ37/AK22 -> 0.2606635071 | AK36: =AK37/AK22 -> 0 | AM36: =CHOOSE(1,"!","TURN",7,AL39,AN36,AQ36) -> ! | AN36: 56 | AO36: =AN36/BC38 -> 0.2947368421 | AP36: ! | AQ36: =AY47 -> 56 | AR36: =AQ36/BC37 -> 0.2947368421 | AS36: =RNSE(AQ36,AN36) -> 0 | BB36: target | BC36: =IF(BW59<>"",AVERAGE(BC37,BW59),BC37) -> 186
U37: =IF(T37<>"",T37-W37,0) -> 0 | V37: ! | W37: =SUM(AG40,AN44,AQ36,AH34) -> 199 | AG37: raw | AH37: 58 | AI37: 98 | AJ37: 55 | AK37: 0 | AM37: =CHOOSE(1,">","TURN",6,AL39,AN37,AQ37) -> > | AN37: 64 | AO37: =AN37/BC38 -> 0.3368421053 | AP37: > | AQ37: =AV47 -> 64 | AR37: =AQ37/BC37 -> 0.3368421053 | AS37: 0 | BB37: ! | BC37: =SUM(AQ35:AQ38) -> 190
U38: =IF(T38<>"",T38-W38,0) -> 0 | V38: ! | W38: =SUM(AJ40,AN41,AN36,AH37) -> 199 | AH38: =CHOOSE(1,8,"TURN",12,AL39,AH37,AH34) -> 8 | AI38: =CHOOSE(1,"$","TURN",11,AL39,AI37,AI34) -> $ | AJ38: =CHOOSE(1,"9","TURN",10,AL39,AJ37,AJ34) -> 9 | AK38: =CHOOSE(1,"M","TURN",9,AL39,AK37,AK34) -> M | AM38: =CHOOSE(1,"N","TURN",5,AL39,AN38,AQ38) -> N | AN38: 0 | AO38: =AN38/BC38 -> 0 | AP38: N | AQ38: =AW47 -> 0 | AR38: =AQ38/BC37 -> 0 | AS38: - | BB38: ! | BC38: =SUM(AN35:AN38) -> 190
AL39: 1
U40: =SUM(AJ40:AJ43) -> 189 | V40: " | AC40: Street 2 | AE40: =RNSE(AG40,AJ40) -> - | AF40: =AG40/U41 -> 0 | AG40: =AY49 -> 0 | AH40: O | AI40: =AJ40/U40 -> 0 | AJ40: 0 | AK40: =CHOOSE(1,"O","TURN",13,AL39,AJ40,AG40) -> O | AM40: =CHOOSE(1,"L","TURN",1,AL39,AM41,AM44) -> L | AN40: =CHOOSE(1,":","TURN",2,AL39,AN41,AN44) -> : | AO40: =CHOOSE(1,"#","TURN",3,AL39,AO41,AO44) -> # | AP40: =CHOOSE(1,";","TURN",4,AL39,AP41,AP44) -> ; | BA40: =SUM(AN38,AJ37,AJ42,AP41) -> 200 | BB40: " | BC40: =IF(BT57<>"",BT57-BA40,0) -> -65
U41: =SUM(AG40:AG43) -> 189 | V41: " | AE41: 0 | AF41: =AG41/U41 -> 0.417989418 | AG41: =AX49 -> 79 | AH41: = | AI41: =AJ41/U40 -> 0.417989418 | AJ41: 79 | AK41: =CHOOSE(1,"=","TURN",14,AL39,AJ41,AG41) -> = | AM41: 0 | AN41: 85 | AO41: 85 | AP41: 94 | AQ41: raw | BA41: =SUM(AQ38,AJ34,AG42,AP44) -> 200 | BB41: " | BC41: =IF(BS57<>"",BS57-BA41,0) -> -65 | BD41: <----
U42: =IF(R41<>"",AVERAGE(U41,R41),U41) -> 189 | V42: target | AE42: 0 | AF42: =AG42/U41 -> 0.2698412698 | AG42: =AW49 -> 51 | AH42: " | AI42: =AJ42/U40 -> 0.2698412698 | AJ42: 51 | AK42: =CHOOSE(1,"""","TURN",15,AL39,AJ42,AG42) -> " | AM42: =AM41/AM56 -> 0 | AN42: =AN41/AM56 -> 0.321969697 | AO42: =AO41/AM56 -> 0.321969697 | AP42: =AP41/AM56 -> 0.3560606061 | AQ42: % | BA42: =IF(BS57<>"",AVERAGE(BA41,BS57),BA41) -> 167.5 | BB42: target | BC42: imbal
AE43: 0 | AF43: =AG43/U41 -> 0.3121693122 | AG43: =AV49 -> 59 | AH43: ? | AI43: =AJ43/U40 -> 0.3121693122 | AJ43: 59 | AK43: =CHOOSE(1,"?","TURN",16,AL39,AJ43,AG43) -> ? | AM43: L | AN43: : | AO43: # | AP43: ;
AE44: RNSE | AF44: % | AG44: bal | AI44: % | AJ44: raw | AM44: =AV46 -> 0 | AN44: =AY46 -> 85 | AO44: =AX46 -> 85 | AP44: =AW46 -> 94 | AQ44: bal | AU44: Local OD Estimated
AM45: =AM44/AN56 -> 0 | AN45: =AN44/AN56 -> 0.321969697 | AO45: =AO44/AN56 -> 0.321969697 | AP45: =AP44/AN56 -> 0.3560606061 | AQ45: % | AU45: ="local_od_est_"&AL39 -> local_od_est_1 | AV45: 1 | AW45: 2 | AX45: 3 | AY45: 4 | AZ45: est | BA45: tgt | BB45: err
AM46: =RNSE(AM44,AM41) -> - | AN46: 0 | AO46: 0 | AP46: 0 | AQ46: RNSE | AU46: 1 | AV46: =AV27 -> 0 | AW46: 94 | AX46: 85 | AY46: 85 | AZ46: =SUM(AV46:AY46) -> 264 | BA46: =BA27 -> 248.5 | BB46: =IFERROR(ABS(AZ46-BA46)/BA46,0) -> 0.06237424547
AU47: 2 | AV47: 64 | AW47: 0 | AX47: 70 | AY47: 56 | AZ47: =SUM(AV47:AY47) -> 190 | BA47: 186 | BB47: =IFERROR(ABS(AZ47-BA47)/BA47,0) -> 0.02150537634
AU48: 3 | AV48: 98 | AW48: 55 | AX48: 0 | AY48: 58 | AZ48: 211 | BA48: 211 | BB48: 0
AU49: 4 | AV49: 59 | AW49: 51 | AX49: 79 | AY49: 0 | AZ49: 189 | BA49: 189 | BB49: 0
AU50: est | AV50: =SUM(AV46:AV49) -> 221 | AW50: =SUM(AW46:AW49) -> 200 | AX50: 234 | AY50: 199
AU51: tgt | AV51: =AV32 -> 209.5 | AW51: 167.5 | AX51: 234 | AY51: 199
AU52: err | AV52: =IFERROR(ABS(AV50-AV51)/AV51,0) -> 0.05489260143 | AW52: =IFERROR(ABS(AW50-AW51)/AW51,0) -> 0.1940298507 | AX52: 0 | AY52: 0 | BB52: =SUM(AV52:AY52,BB46:BB49) -> 0.332802074
AI54: =IF(AJ57<>"",AVERAGE(AJ54,AJ57),AJ54) -> 209.5 | AJ54: =SUM(AM44,AQ37,AI34,AG43) -> 221 | AK54: =SUM(AM41,AN37,AI37,AJ43) -> 221
AI55: target | AJ55: $ | AK55: $ | AM55: # | AN55: # | AO55: target
AI56: imbal | AJ56: =IF(AJ57<>"",AJ57-AJ54,0) -> -23 | AK56: =IF(AK57<>"",AK57-AK54,0) -> -23 | AM56: =SUM(AM41:AP41) -> 264 | AN56: =SUM(AM44:AP44) -> 264 | AO56: =IF(AN59<>"",AVERAGE(AN56,AN59),AN56) -> 248.5 | BW56: $$$
AI57: =IF(AJ54<>"",AVERAGE(AJ57,AJ54),AJ57) -> 209.5 | AJ57: =SUM(AH69:AK69) -> 198 | AK57: =SUM(AH72:AK72) -> 198 | AM57: =IF(AM56<>"",AM56-AM59,0) -> 31 | AN57: =IF(AN56<>"",AN56-AN59,0) -> 31 | AO57: imbal | BR57: =IF(BA41<>"",AVERAGE(BS57,BA41),BS57) -> 167.5 | BS57: =SUM(BR69:BT69) -> 135 | BT57: =SUM(BR72:BT72) -> 135 | BV57: =IF(BC38<>"",BC38-BV59,0) -> 8 | BW57: =IF(BC37<>"",BC37-BW59,0) -> 8 | BX57: imbal
AI58: target | AJ58: $ | AK58: $ | AM58: # | AN58: # | AO58: target | BR58: target | BS58: $ | BT58: $ | BV58: # | BW58: # | BX58: target
AM59: =SUM(AK72,AJ76,AO76,AN70) -> 233 | AN59: =SUM(AK69,AG76,AO79,AQ70) -> 233 | AO59: =IF(AN56<>"",AVERAGE(AN59,AN56),AN59) -> 248.5 | BV59: =SUM(BT72,BS76,BW71) -> 182 | BW59: =SUM(BT69,BP76,BZ71) -> 182 | BX59: =IF(BC37<>"",AVERAGE(BW59,BC37),BW59) -> 186
X60: =CHOOSE(1,AL74&":","IX_NAME",Y60) -> 2: | Y60: =AC75&" & "&AK63 -> Street 3 & Street 1 | AU60: Local OD Raw | BG60: =CHOOSE(1,BU74&":","IX_NAME",BH60) -> 3: | BH60: =BL75&" & "&BT63 -> Street 3 & Street 2 | CD60: Local OD Raw
Y61: Raw Count Date: | AU61: ="local_od_raw_"&AL74 -> local_od_raw_2 | AV61: 1 | AW61: 2 | AX61: 3 | AY61: 4 | AZ61: est | BA61: tgt | BB61: err | BH61: Raw Count Date: | CD61: ="local_od_raw_"&BU74 -> local_od_raw_3 | CE61: 2 | CF61: 3 | CG61: 4 | CH61: est | CI61: tgt | CJ61: err
AU62: 1 | AV62: =AM76 -> 0 | AW62: =AP76 -> 86 | AX62: =AO76 -> 73 | AY62: =AN76 -> 71 | AZ62: =SUM(AV62:AY62) -> 230 | BA62: =AO91 -> 230 | BB62: =IFERROR(ABS(AZ62-BA62)/BA62,0) -> 0 | CD62: 2 | CE62: =BW73 -> 0 | CF62: =BW71 -> 84 | CG62: =BW72 -> 60 | CH62: =SUM(CE62:CG62) -> 144 | CI62: =CL71 -> 144 | CJ62: =IFERROR(ABS(CH62-CI62)/CI62,0) -> 0
AK63: Street 1 | AU63: 2 | AV63: =AN72 -> 93 | AW63: =AN73 -> 0 | AX63: =AN70 -> 86 | AY63: =AN71 -> 78 | AZ63: =SUM(AV63:AY63) -> 257 | BA63: =BC71 -> 189 | BB63: =IFERROR(ABS(AZ63-BA63)/BA63,0) -> 0.3597883598 | BT63: Street 2 | CD63: 3 | CE63: =BS72 -> 74 | CF63: =BT72 -> 0 | CG63: =BR72 -> 61 | CH63: =SUM(CE63:CG63) -> 135 | CI63: =BR57 -> 167.5 | CJ63: 0.1940298507
AU64: 3 | AV64: =AI72 -> 54 | AW64: =AJ72 -> 51 | AX64: =AK72 -> 0 | AY64: =AH72 -> 93 | AZ64: =SUM(AV64:AY64) -> 198 | BA64: =AI57 -> 209.5 | BB64: 0.05489260143 | CD64: 4 | CE64: =BS77 -> 84 | CF64: =BS76 -> 98 | CG64: =BS75 -> 0 | CH64: =SUM(CE64:CG64) -> 182 | CI64: =BD77 -> 188 | CJ64: 0.03191489362
AU65: 4 | AV65: =AJ78 -> 50 | AW65: =AJ77 -> 57 | AX65: =AJ76 -> 74 | AY65: =AJ75 -> 0 | AZ65: =SUM(AV65:AY65) -> 181 | BA65: =U77 -> 181 | BB65: 0 | CD65: est | CE65: =SUM(CE62:CE64) -> 158 | CF65: =SUM(CF62:CF64) -> 182 | CG65: =SUM(CG62:CG64) -> 121
AU66: est | AV66: =SUM(AV62:AV65) -> 197 | AW66: =SUM(AW62:AW65) -> 194 | AX66: =SUM(AX62:AX65) -> 233 | AY66: =SUM(AY62:AY65) -> 242 | CD66: tgt | CE66: =CJ77 -> 158 | CF66: =BX59 -> 186 | CG66: =BF71 -> 189
AG67: RNSE | AH67: =RNSE(AH69,AH72) -> 0 | AI67: =RNSE(AI69,AI72) -> 0 | AJ67: 0 | AK67: - | AU67: tgt | AV67: =AI89 -> 197 | AW67: =BA77 -> 188 | AX67: =AO59 -> 248.5 | AY67: =W71 -> 242 | BQ67: RNSE | BR67: =RNSE(BR69,BR72) -> 0 | BS67: =RNSE(BS69,BS72) -> 0 | BT67: - | CD67: err | CE67: =IFERROR(ABS(CE65-CE66)/CE66,0) -> 0 | CF67: 0.02150537634 | CG67: 0.3597883598 | CJ67: =SUM(CE67:CG67,CJ62:CJ64) -> 0.6072384805
AG68: % | AH68: =AH69/AJ57 -> 0.4696969697 | AI68: =AI69/AJ57 -> 0.2727272727 | AJ68: =AJ69/AJ57 -> 0.2575757576 | AK68: =AK69/AJ57 -> 0 | AU68: err | AV68: =IFERROR(ABS(AV66-AV67)/AV67,0) -> 0 | AW68: =IFERROR(ABS(AW66-AW67)/AW67,0) -> 0.03191489362 | AX68: 0.06237424547 | AY68: 0 | BB68: =SUM(AV68:AY68,BB62:BB65) -> 0.5089701003 | BQ68: % | BR68: =BR69/BS57 -> 0.4518518519 | BS68: =BS69/BS57 -> 0.5481481481 | BT68: =BT69/BS57 -> 0
AG69: bal | AH69: =AY83 -> 93 | AI69: =AV83 -> 54 | AJ69: =AW83 -> 51 | AK69: =AX83 -> 0 | AN69: raw | AO69: % | AQ69: bal | AR69: % | AS69: RNSE | BQ69: bal | BR69: =CG82 -> 61 | BS69: =CE82 -> 74 | BT69: =CF82 -> 0
AH70: 8 | AI70: $ | AJ70: 9 | AK70: M | AM70: =CHOOSE(1,"<","TURN",8,AL74,AN70,AQ70) -> < | AN70: 86 | AO70: =AN70/BC73 -> 0.3346303502 | AP70: < | AQ70: =AX82 -> 86 | AR70: =AQ70/BC72 -> 0.3346303502 | AS70: =RNSE(AQ70,AN70) -> 0 | BR70: 8 | BS70: 9 | BT70: M | BW70: raw | BX70: % | BZ70: bal | CA70: % | CB70: RNSE
U71: imbal | V71: target | W71: =IF(T72<>"",AVERAGE(W72,T72),W72) -> 242 | AG71: % | AH71: =AH72/AK57 -> 0.4696969697 | AI71: =AI72/AK57 -> 0.2727272727 | AJ71: =AJ72/AK57 -> 0.2575757576 | AK71: =AK72/AK57 -> 0 | AM71: =CHOOSE(1,"!","TURN",7,AL74,AN71,AQ71) -> ! | AN71: 78 | AO71: =AN71/BC73 -> 0.3035019455 | AP71: ! | AQ71: =AY82 -> 78 | AR71: =AQ71/BC72 -> 0.3035019455 | AS71: =RNSE(AQ71,AN71) -> 0 | BB71: target | BC71: =IF(BF72<>"",AVERAGE(BC72,BF72),BC72) -> 189 | BD71: imbal | BE71: target | BF71: =IF(BC72<>"",AVERAGE(BF72,BC72),BF72) -> 189 | BQ71: % | BR71: =BR72/BT57 -> 0.4518518519 | BS71: =BS72/BT57 -> 0.5481481481 | BT71: =BT72/BT57 -> 0 | BV71: =CHOOSE(1,"<","TURN",8,BU74,BW71,BZ71) -> < | BW71: 84 | BX71: =BW71/CL73 -> 0.5833333333 | BY71: < | BZ71: =CF81 -> 84 | CA71: =BZ71/CL72 -> 0.5833333333 | CB71: =RNSE(BZ71,BW71) -> 0 | CK71: target | CL71: =IF(CO72<>"",AVERAGE(CL72,CO72),CL72) -> 144
U72: =IF(T72<>"",T72-W72,0) -> 0 | V72: ! | W72: =SUM(AG75,AN79,AQ71,AH69) -> 242 | AG72: raw | AH72: 93 | AI72: 54 | AJ72: 51 | AK72: 0 | AM72: =CHOOSE(1,">","TURN",6,AL74,AN72,AQ72) -> > | AN72: 93 | AO72: =AN72/BC73 -> 0.3618677043 | AP72: > | AQ72: =AV82 -> 93 | AR72: =AQ72/BC72 -> 0.3618677043 | AS72: 0 | BB72: ! | BC72: =SUM(AQ70:AQ73) -> 257 | BD72: =IF(BC72<>"",BC72-BF72,0) -> 136 | BE72: ! | BF72: =SUM(BP75,BZ72,BR69) -> 121 | BQ72: raw | BR72: 61 | BS72: 74 | BT72: 0 | BV72: =CHOOSE(1,"!","TURN",7,BU74,BW72,BZ72) -> ! | BW72: 60 | BX72: =BW72/CL73 -> 0.4166666667 | BY72: ! | BZ72: =CG81 -> 60 | CA72: =BZ72/CL72 -> 0.4166666667 | CB72: =RNSE(BZ72,BW72) -> 0 | CK72: ! | CL72: =SUM(BZ71:BZ73) -> 144
U73: =IF(T73<>"",T73-W73,0) -> 0 | V73: ! | W73: =SUM(AJ75,AN76,AN71,AH72) -> 242 | AH73: =CHOOSE(1,8,"TURN",12,AL74,AH72,AH69) -> 8 | AI73: =CHOOSE(1,"$","TURN",11,AL74,AI72,AI69) -> $ | AJ73: =CHOOSE(1,"9","TURN",10,AL74,AJ72,AJ69) -> 9 | AK73: =CHOOSE(1,"M","TURN",9,AL74,AK72,AK69) -> M | AM73: =CHOOSE(1,"N","TURN",5,AL74,AN73,AQ73) -> N | AN73: 0 | AO73: =AN73/BC73 -> 0 | AP73: N | AQ73: =AW82 -> 0 | AR73: =AQ73/BC72 -> 0 | AS73: - | BB73: ! | BC73: =SUM(AN70:AN73) -> 257 | BD73: =IF(BC73<>"",BC73-BF73,0) -> 136 | BE73: ! | BF73: =SUM(BS75,BW76,BW72,BR72) -> 121 | BR73: =CHOOSE(1,8,"TURN",12,BU74,BR72,BR69) -> 8 | BS73: =CHOOSE(1,"9","TURN",10,BU74,BS72,BS69) -> 9 | BT73: =CHOOSE(1,"M","TURN",9,BU74,BT72,BT69) -> M | BV73: =CHOOSE(1,"N","TURN",5,BU74,BW73,BZ73) -> N | BW73: 0 | BX73: =BW73/CL73 -> 0 | BY73: N | BZ73: =CE81 -> 0 | CA73: =BZ73/CL72 -> 0 | CB73: =RNSE(BZ73,BW73) -> - | CK73: ! | CL73: =SUM(BW71:BW73) -> 144
AL74: 2 | BU74: 3
U75: =SUM(AJ75:AJ78) -> 181 | V75: " | AC75: Street 3 | AE75: =RNSE(AG75,AJ75) -> - | AF75: =AG75/U76 -> 0 | AG75: =AY84 -> 0 | AH75: O | AI75: =AJ75/U75 -> 0 | AJ75: 0 | AK75: =CHOOSE(1,"O","TURN",13,AL74,AJ75,AG75) -> O | AM75: =CHOOSE(1,"L","TURN",1,AL74,AM76,AM79) -> L | AN75: =CHOOSE(1,":","TURN",2,AL74,AN76,AN79) -> : | AO75: =CHOOSE(1,"#","TURN",3,AL74,AO76,AO79) -> # | AP75: =CHOOSE(1,";","TURN",4,AL74,AP76,AP79) -> ; | BA75: =SUM(AN73,AJ72,AJ77,AP76) -> 194 | BB75: " | BC75: =IF(BD75<>"",BD75-BA75,0) -> -12 | BD75: =SUM(BS75:BS77) -> 182 | BE75: " | BL75: Street 3 | BN75: =RNSE(BP75,BS75) -> - | BO75: =BP75/BD76 -> 0 | BP75: =CG83 -> 0 | BQ75: O | BR75: =BS75/BD75 -> 0 | BS75: 0 | BT75: =CHOOSE(1,"O","TURN",13,BU74,BS75,BP75) -> O | CJ75: =SUM(BW73,BS72,BS77) -> 158 | CK75: " | CL75: =IF(CM75<>"",CM75-CJ75,0) -> 0
U76: =SUM(AG75:AG78) -> 181 | V76: " | AE76: 0 | AF76: =AG76/U76 -> 0.408839779 | AG76: =AX84 -> 74 | AH76: = | AI76: =AJ76/U75 -> 0.408839779 | AJ76: 74 | AK76: =CHOOSE(1,"=","TURN",14,AL74,AJ76,AG76) -> = | AM76: 0 | AN76: 71 | AO76: 73 | AP76: 86 | AQ76: raw | BA76: =SUM(AQ73,AJ69,AG77,AP79) -> 194 | BB76: " | BC76: =IF(BD76<>"",BD76-BA76,0) -> -12 | BD76: =SUM(BP75:BP77) -> 182 | BE76: " | BN76: 0 | BO76: =BP76/BD76 -> 0.5384615385 | BP76: =CF83 -> 98 | BQ76: = | BR76: =BS76/BD75 -> 0.5384615385 | BS76: 98 | BT76: =CHOOSE(1,"=","TURN",14,BU74,BS76,BP76) -> = | CJ76: =SUM(BZ73,BS69,BP77) -> 158 | CK76: " | CL76: =IF(CM76<>"",CM76-CJ76,0) -> 0
U77: =IF(R76<>"",AVERAGE(U76,R76),U76) -> 181 | V77: target | AE77: 0 | AF77: =AG77/U76 -> 0.3149171271 | AG77: =AW84 -> 57 | AH77: " | AI77: =AJ77/U75 -> 0.3149171271 | AJ77: 57 | AK77: =CHOOSE(1,"""","TURN",15,AL74,AJ77,AG77) -> " | AM77: =AM76/AM91 -> 0 | AN77: =AN76/AM91 -> 0.3086956522 | AO77: =AO76/AM91 -> 0.3173913043 | AP77: =AP76/AM91 -> 0.3739130435 | AQ77: % | BA77: =IF(BD76<>"",AVERAGE(BA76,BD76),BA76) -> 188 | BB77: target | BC77: imbal | BD77: =IF(BA76<>"",AVERAGE(BD76,BA76),BD76) -> 188 | BE77: target | BN77: 0 | BO77: =BP77/BD76 -> 0.4615384615 | BP77: =CE83 -> 84 | BQ77: " | BR77: =BS77/BD75 -> 0.4615384615 | BS77: 84 | BT77: =CHOOSE(1,"""","TURN",15,BU74,BS77,BP77) -> " | CJ77: =IF(CM76<>"",AVERAGE(CJ76,CM76),CJ76) -> 158 | CK77: target | CL77: imbal
AE78: 0 | AF78: =AG78/U76 -> 0.2762430939 | AG78: =AV84 -> 50 | AH78: ? | AI78: =AJ78/U75 -> 0.2762430939 | AJ78: 50 | AK78: =CHOOSE(1,"?","TURN",16,AL74,AJ78,AG78) -> ? | AM78: L | AN78: : | AO78: # | AP78: ; | BN78: RNSE | BO78: % | BP78: bal | BR78: % | BS78: raw
AE79: RNSE | AF79: % | AG79: bal | AI79: % | AJ79: raw | AM79: =AV81 -> 0 | AN79: =AY81 -> 71 | AO79: =AX81 -> 73 | AP79: =AW81 -> 86 | AQ79: bal | AU79: Local OD Estimated | CD79: Local OD Estimated
AM80: =AM79/AN91 -> 0 | AN80: =AN79/AN91 -> 0.3086956522 | AO80: =AO79/AN91 -> 0.3173913043 | AP80: =AP79/AN91 -> 0.3739130435 | AQ80: % | AU80: ="local_od_est_"&AL74 -> local_od_est_2 | AV80: 1 | AW80: 2 | AX80: 3 | AY80: 4 | AZ80: est | BA80: tgt | BB80: err | CD80: ="local_od_est_"&BU74 -> local_od_est_3 | CE80: 2 | CF80: 3 | CG80: 4 | CH80: est | CI80: tgt | CJ80: err
AM81: =RNSE(AM79,AM76) -> - | AN81: 0 | AO81: 0 | AP81: 0 | AQ81: RNSE | AU81: 1 | AV81: =AV62 -> 0 | AW81: 86 | AX81: 73 | AY81: 71 | AZ81: =SUM(AV81:AY81) -> 230 | BA81: =BA62 -> 230 | BB81: =IFERROR(ABS(AZ81-BA81)/BA81,0) -> 0 | CD81: 2 | CE81: =CE62 -> 0 | CF81: 84 | CG81: 60 | CH81: =SUM(CE81:CG81) -> 144 | CI81: =CI62 -> 144 | CJ81: =IFERROR(ABS(CH81-CI81)/CI81,0) -> 0
AU82: 2 | AV82: 93 | AW82: 0 | AX82: 86 | AY82: 78 | AZ82: =SUM(AV82:AY82) -> 257 | BA82: 189 | BB82: =IFERROR(ABS(AZ82-BA82)/BA82,0) -> 0.3597883598 | CD82: 3 | CE82: 74 | CF82: 0 | CG82: 61 | CH82: =SUM(CE82:CG82) -> 135 | CI82: =CI63 -> 167.5 | CJ82: 0.1940298507
AU83: 3 | AV83: 54 | AW83: 51 | AX83: 0 | AY83: 93 | AZ83: 198 | BA83: 209.5 | BB83: 0.05489260143 | CD83: 4 | CE83: 84 | CF83: 98 | CG83: 0 | CH83: =SUM(CE83:CG83) -> 182 | CI83: =CI64 -> 188 | CJ83: 0.03191489362
AU84: 4 | AV84: 50 | AW84: 57 | AX84: 74 | AY84: 0 | AZ84: 181 | BA84: 181 | BB84: 0 | CD84: est | CE84: =SUM(CE81:CE83) -> 158 | CF84: =SUM(CF81:CF83) -> 182 | CG84: =SUM(CG81:CG83) -> 121
AU85: est | AV85: =SUM(AV81:AV84) -> 197 | AW85: =SUM(AW81:AW84) -> 194 | AX85: 233 | AY85: 242 | CD85: tgt | CE85: =CE66 -> 158 | CF85: =CF66 -> 186 | CG85: =CG66 -> 189
AU86: tgt | AV86: =AV67 -> 197 | AW86: 188 | AX86: 248.5 | AY86: 242 | CD86: err | CE86: =IFERROR(ABS(CE84-CE85)/CE85,0) -> 0 | CF86: 0.02150537634 | CG86: 0.3597883598 | CJ86: =SUM(CE86:CG86,CJ81:CJ83) -> 0.6072384805
AU87: err | AV87: =IFERROR(ABS(AV85-AV86)/AV86,0) -> 0 | AW87: =IFERROR(ABS(AW85-AW86)/AW86,0) -> 0.03191489362 | AX87: 0.06237424547 | AY87: 0 | BB87: =SUM(AV87:AY87,BB81:BB84) -> 0.5089701003
AI89: =IF(AJ92<>"",AVERAGE(AJ89,AJ92),AJ89) -> 197 | AJ89: =SUM(AM79,AQ72,AI69,AG78) -> 197 | AK89: =SUM(AM76,AN72,AI72,AJ78) -> 197
AI90: target | AJ90: $ | AK90: $ | AM90: # | AN90: # | AO90: target
AI91: imbal | AJ91: =IF(AJ92<>"",AJ92-AJ89,0) -> 0 | AK91: =IF(AK92<>"",AK92-AK89,0) -> 0 | AM91: =SUM(AM76:AP76) -> 230 | AN91: =SUM(AM79:AP79) -> 230 | AO91: =IF(AN94<>"",AVERAGE(AN91,AN94),AN91) -> 230

Sheet Listing
I2: Project | J2: =Schematic!$L$3 -> (Highway XX Project)
I3: Scenario | J3: =Schematic!$L$4 -> (Peak Period)
C5: Intersection Numbers & Names | G5: Intersection Turning Movement Volume Comparison | T5: Imbalance Cells
M7: Volume
C8: Intersection Number | D8: Intersection Name | G8: SORT | H8: TURN_ID | I8: Intersection Number | J8: Intersection | K8: Intersection | L8: Turn | M8: Raw | N8: Balanced | O8: Diff. (Bal - Raw) | P8: RNSE | T8: Cell | U8: Value
C9: 1 | D9: =Schematic!$Y$25 -> Street 2 & Street 1 | G9: 1 | H9: TURN_001_01 | I9: 1 | J9: =INDEX($D$9:$D$11, MATCH($I9,$C$9:$C$11,0)) -> Street 2 & Street 1 | K9: =INDEX($D$9:$D$11, MATCH($I9,$C$9:$C$11,0)) -> Street 2 & Street 1 | L9: NBU | M9: =INDIRECT(H9 & "_raw") -> 0 | N9: =INDIRECT(H9 & "_bal") -> 0 | O9: =$N9-$M9 -> 0 | P9: =IF($M9>0, SQRT($O9^2/$M9),"") ->  | T9: =CELL("address",Schematic!$AN$22) -> '[Intersection Balancing Example Triangle.xlsm]Schematic'!$AN$22 | U9: =INDIRECT($T9) -> 0
C10: 2 | D10: =Schematic!$Y$60 -> Street 3 & Street 1 | G10: 2 | H10: TURN_001_02 | I10: 1 | K10: Street 2 & Street 1 | L10: NBL | M10: 85 | N10: 85 | O10: 0 | P10: 0 | T10: =CELL("address",Schematic!$U$37) -> '[Intersection Balancing Example Triangle.xlsm]Schematic'!$U$37 | U10: 0
C11: 3 | D11: =Schematic!$BH$60 -> Street 3 & Street 2 | G11: 3 | H11: TURN_001_03 | I11: 1 | K11: Street 2 & Street 1 | L11: NBT | M11: 85 | N11: 85 | O11: 0 | P11: 0 | T11: =CELL("address",Schematic!$BC$41) -> '[Intersection Balancing Example Triangle.xlsm]Schematic'!$BC$41 | U11: -65
G12: 4 | H12: TURN_001_04 | I12: 1 | K12: Street 2 & Street 1 | L12: NBR | M12: 94 | N12: 94 | O12: 0 | P12: 0 | T12: =CELL("address",Schematic!$AJ$56) -> '[Intersection Balancing Example Triangle.xlsm]Schematic'!$AJ$56 | U12: -23
G13: 5 | H13: TURN_001_05 | I13: 1 | K13: Street 2 & Street 1 | L13: WBU | M13: 0 | N13: 0 | O13: 0 | T13: =CELL("address",Schematic!$AN$57) -> '[Intersection Balancing Example Triangle.xlsm]Schematic'!$AN$57 | U13: 31
G14: 6 | H14: TURN_001_06 | I14: 1 | K14: Street 2 & Street 1 | L14: WBL | M14: 64 | N14: 64 | O14: 0 | P14: 0 | T14: =CELL("address",Schematic!$BW$57) -> '[Intersection Balancing Example Triangle.xlsm]Schematic'!$BW$57 | U14: 8
G15: 7 | H15: TURN_001_07 | I15: 1 | K15: Street 2 & Street 1 | L15: WBT | M15: 56 | N15: 56 | O15: 0 | P15: 0 | T15: =CELL("address",Schematic!$U$72) -> '[Intersection Balancing Example Triangle.xlsm]Schematic'!$U$72 | U15: 0
G16: 8 | H16: TURN_001_08 | I16: 1 | K16: Street 2 & Street 1 | L16: WBR | M16: 70 | N16: 70 | O16: 0 | P16: 0 | T16: =CELL("address",Schematic!$BD$72) -> '[Intersection Balancing Example Triangle.xlsm]Schematic'!$BD$72 | U16: 136
G17: 9 | H17: TURN_001_09 | I17: 1 | K17: Street 2 & Street 1 | L17: SBU | M17: 0 | N17: 0 | O17: 0 | T17: =CELL("address",Schematic!$BC$76) -> '[Intersection Balancing Example Triangle.xlsm]Schematic'!$BC$76 | U17: -12
G18: 10 | H18: TURN_001_10 | I18: 1 | K18: Street 2 & Street 1 | L18: SBL | M18: 55 | N18: 55 | O18: 0 | P18: 0 | T18: =CELL("address",Schematic!$CL$76) -> '[Intersection Balancing Example Triangle.xlsm]Schematic'!$CL$76 | U18: 0
G19: 11 | H19: TURN_001_11 | I19: 1 | K19: Street 2 & Street 1 | L19: SBT | M19: 98 | N19: 98 | O19: 0 | P19: 0 | T19: =CELL("address",Schematic!$AJ$91) -> '[Intersection Balancing Example Triangle.xlsm]Schematic'!$AJ$91 | U19: 0
G20: 12 | H20: TURN_001_12 | I20: 1 | K20: Street 2 & Street 1 | L20: SBR | M20: 58 | N20: 58 | O20: 0 | P20: 0
G21: 13 | H21: TURN_001_13 | I21: 1 | K21: Street 2 & Street 1 | L21: EBU | M21: 0 | N21: 0 | O21: 0
G22: 14 | H22: TURN_001_14 | I22: 1 | K22: Street 2 & Street 1 | L22: EBL | M22: 79 | N22: 79 | O22: 0 | P22: 0
G23: 15 | H23: TURN_001_15 | I23: 1 | K23: Street 2 & Street 1 | L23: EBT | M23: 51 | N23: 51 | O23: 0 | P23: 0
G24: 16 | H24: TURN_001_16 | I24: 1 | K24: Street 2 & Street 1 | L24: EBR | M24: 59 | N24: 59 | O24: 0 | P24: 0
G25: 17 | H25: TURN_002_01 | I25: 2 | J25: =INDEX($D$9:$D$11, MATCH($I25,$C$9:$C$11,0)) -> Street 3 & Street 1 | K25: Street 3 & Street 1 | L25: NBU | M25: 0 | N25: 0 | O25: 0
G26: 18 | H26: TURN_002_02 | I26: 2 | K26: Street 3 & Street 1 | L26: NBL | M26: 71 | N26: 71 | O26: 0 | P26: 0
G27: 19 | H27: TURN_002_03 | I27: 2 | K27: Street 3 & Street 1 | L27: NBT | M27: 73 | N27: 73 | O27: 0 | P27: 0
G28: 20 | H28: TURN_002_04 | I28: 2 | K28: Street 3 & Street 1 | L28: NBR | M28: 86 | N28: 86 | O28: 0 | P28: 0
G29: 21 | H29: TURN_002_05 | I29: 2 | K29: Street 3 & Street 1 | L29: WBU | M29: 0 | N29: 0 | O29: 0
G30: 22 | H30: TURN_002_06 | I30: 2 | K30: Street 3 & Street 1 | L30: WBL | M30: 93 | N30: 93 | O30: 0 | P30: 0
G31: 23 | H31: TURN_002_07 | I31: 2 | K31: Street 3 & Street 1 | L31: WBT | M31: 78 | N31: 78 | O31: 0 | P31: 0
G32: 24 | H32: TURN_002_08 | I32: 2 | K32: Street 3 & Street 1 | L32: WBR | M32: 86 | N32: 86 | O32: 0 | P32: 0
G33: 25 | H33: TURN_002_09 | I33: 2 | K33: Street 3 & Street 1 | L33: SBU | M33: 0 | N33: 0 | O33: 0
G34: 26 | H34: TURN_002_10 | I34: 2 | K34: Street 3 & Street 1 | L34: SBL | M34: 51 | N34: 51 | O34: 0 | P34: 0
G35: 27 | H35: TURN_002_11 | I35: 2 | K35: Street 3 & Street 1 | L35: SBT | M35: 54 | N35: 54 | O35: 0 | P35: 0
G36: 28 | H36: TURN_002_12 | I36: 2 | K36: Street 3 & Street 1 | L36: SBR | M36: 93 | N36: 93 | O36: 0 | P36: 0
G37: 29 | H37: TURN_002_13 | I37: 2 | K37: Street 3 & Street 1 | L37: EBU | M37: 0 | N37: 0 | O37: 0
G38: 30 | H38: TURN_002_14 | I38: 2 | K38: Street 3 & Street 1 | L38: EBL | M38: 74 | N38: 74 | O38: 0 | P38: 0
G39: 31 | H39: TURN_002_15 | I39: 2 | K39: Street 3 & Street 1 | L39: EBT | M39: 57 | N39: 57 | O39: 0 | P39: 0
G40: 32 | H40: TURN_002_16 | I40: 2 | K40: Street 3 & Street 1 | L40: EBR | M40: 50 | N40: 50 | O40: 0 | P40: 0
G41: 33 | H41: TURN_003_05 | I41: 3 | J41: =INDEX($D$9:$D$11, MATCH($I41,$C$9:$C$11,0)) -> Street 3 & Street 2 | K41: Street 3 & Street 2 | L41: WBU | M41: 0 | N41: 0 | O41: 0
G42: 34 | H42: TURN_003_07 | I42: 3 | K42: Street 3 & Street 2 | L42: WBT | M42: 60 | N42: 60 | O42: 0 | P42: 0
G43: 35 | H43: TURN_003_08 | I43: 3 | K43: Street 3 & Street 2 | L43: WBR | M43: 84 | N43: 84 | O43: 0 | P43: 0
G44: 36 | H44: TURN_003_09 | I44: 3 | K44: Street 3 & Street 2 | L44: SBU | M44: 0 | N44: 0 | O44: 0
G45: 37 | H45: TURN_003_10 | I45: 3 | K45: Street 3 & Street 2 | L45: SBL | M45: 74 | N45: 74 | O45: 0 | P45: 0
G46: 38 | H46: TURN_003_12 | I46: 3 | K46: Street 3 & Street 2 | L46: SBR | M46: 61 | N46: 61 | O46: 0 | P46: 0
G47: 39 | H47: TURN_003_13 | I47: 3 | K47: Street 3 & Street 2 | L47: EBU | M47: 0 | N47: 0 | O47: 0
G48: 40 | H48: TURN_003_14 | I48: 3 | K48: Street 3 & Street 2 | L48: EBL | M48: 98 | N48: 98 | O48: 0 | P48: 0
G49: 41 | H49: TURN_003_15 | I49: 3 | K49: Street 3 & Street 2 | L49: EBT | M49: 84 | N49: 84 | O49: 0 | P49: 0

Sheet Raw-Initial Volume List Entry
D2: Project | E2: =Schematic!$L$3 -> (Highway XX Project)
D3: Scenario | E3: =Schematic!$L$4 -> (Peak Period)
D6: Transfer Raw/Initial Volumes to/from the Schematic Worksheet
M8: Turn Numbers in Schematic Orientation
M9: ê | R9: < | S9: 8
M10: Top Leg | R10: ! | S10: 7 | T10: ç
M11: 12 | N11: 11 | O11: 10 | P11: 9 | R11: > | S11: 6 | T11: Right Leg
M12: 8 | N12: $ | O12: 9 | P12: M | R12: N | S12: 5
O14: 13 | P14: O | R14: L | S14: : | T14: # | U14: ;
M15: è | O15: 14 | P15: = | R15: 1 | S15: 2 | T15: 3 | U15: 4
M16: Left Leg | O16: 15 | P16: " | R16: é
O17: 16 | P17: ? | R17: Bottom Leg
E21: Turn Number | F21: 12 | G21: 11 | H21: 10 | I21: 9 | J21: 8 | K21: 7 | L21: 6 | M21: 5 | N21: 4 | O21: 3 | P21: 2 | Q21: 1 | R21: 16 | S21: 15 | T21: 14 | U21: 13
F22: ê | J22: ç | N22: é | R22: è
D23: Intersection | F23: Top Leg | J23: Right Leg | N23: Bottom Leg | R23: Left Leg
D24: Number | E24: Name | F24: Right | G24: Thru | H24: Left | I24: U-Tn | J24: Right | K24: Thru | L24: Left | M24: U-Tn | N24: Right | O24: Thru | P24: Left | Q24: U-Tn | R24: Right | S24: Thru | T24: Left | U24: U-Tn
D25: =Schematic!$AL$39 -> 1 | E25: =Schematic!$Y$25 -> Street 2 & Street 1 | F25: 58 | G25: 98 | H25: 55 | I25: 0 | J25: 70 | K25: 56 | L25: 64 | M25: 0 | N25: 94 | O25: 85 | P25: 85 | Q25: 0 | R25: 59 | S25: 51 | T25: 79 | U25: 0
D26: =Schematic!$AL$74 -> 2 | E26: =Schematic!$Y$60 -> Street 3 & Street 1 | F26: 93 | G26: 54 | H26: 51 | I26: 0 | J26: 86 | K26: 78 | L26: 93 | M26: 0 | N26: 86 | O26: 73 | P26: 71 | Q26: 0 | R26: 50 | S26: 57 | T26: 74 | U26: 0
D27: =Schematic!$BU$74 -> 3 | E27: =Schematic!$BH$60 -> Street 3 & Street 2 | F27: 61 | H27: 74 | I27: 0 | J27: 84 | K27: 60 | M27: 0 | S27: 84 | T27: 98 | U27: 0
